bitfinex/quotes_BTCUSD_20240819
["timestamp","ask_amount","ask_price","bid_price","bid_amount"]
[1724026728270,0.00065866,58740.0,58739.0,0.124171]
[1724026729656,0.11982766,58740.0,58739.0,0.005]
[1724026729905,0.00065866,58740.0,58739.0,0.005]
[1724026730173,0.11982766,58740.0,58739.0,0.005]
[1724026730666,0.35816566,58740.0,58739.0,0.005]
[1724026730953,0.54066566,58740.0,58739.0,0.005]
[1724026731197,0.30232766,58740.0,58739.0,0.005]
[1724026732163,0.00065866,58740.0,58739.0,0.005]
[1724026732881,0.00065866,58740.0,58739.0,0.124171]
[1724026733358,0.00065866,58740.0,58739.0,0.1250752]
[1724026734102,0.11982766,58740.0,58739.0,0.0059042]
[1724026734323,1.35264037,58740.0,58739.0,0.0059042]
[1724026734535,1.60753102,58740.0,58739.0,0.0059042]
[1724026735168,1.60753102,58740.0,58739.0,0.0009042]
[1724026735589,1.60853102,58740.0,58739.0,0.0019042]
[1724026735829,1.87286902,58740.0,58739.0,0.0019042]
[1724026736031,1.87286902,58740.0,58739.0,0.0009042]
[1724026736032,1.93090199,58740.0,58739.0,0.0009042]
[1724026736241,1.86986902,58740.0,58739.0,0.0009042]
[1724026736671,1.86886902,58740.0,58739.0,0.0009042]
[1724026736878,1.92788315,58740.0,58739.0,0.0009042]
[1724026737081,1.92888315,58740.0,58739.0,0.0009042]
[1724026737501,1.93388315,58740.0,58739.0,0.0009042]
[1724026737878,1.87486902,58740.0,58739.0,0.0009042]
[1724026738082,1.87386902,58740.0,58739.0,0.0009042]
[1724026738299,1.669793,58736.0,58735.0,0.0009042]
[1724026738504,1.669793,58736.0,58721.0,0.0009042]
[1724026738505,0.357616,58722.0,58721.0,0.0009042]
[1724026738745,1.80489254,58722.0,58721.0,0.0009042]
[1724026738955,1.82143817,58722.0,58721.0,0.0009042]
[1724026740791,2.03170371,58722.0,58721.0,0.0009042]
[1724026740995,2.05170371,58722.0,58721.0,0.0009042]
[1724026741208,2.05170133,58722.0,58721.0,0.0009042]
[1724026741614,2.05670133,58722.0,58721.0,0.0009042]
[1724026741816,2.05370133,58722.0,58721.0,0.0009042]
[1724026742233,2.05470133,58722.0,58721.0,0.0009042]
[1724026742435,2.05270133,58722.0,58721.0,0.0009042]
[1724026742631,2.05370133,58722.0,58721.0,0.0009042]
[1724026743002,2.05270133,58722.0,58721.0,0.0009042]
[1724026743368,2.05370133,58722.0,58721.0,0.0009042]
[1724026744206,2.05670133,58722.0,58721.0,0.0009042]
[1724026744541,2.05370133,58722.0,58721.0,0.0009042]
[1724026744749,2.05270133,58722.0,58721.0,0.0009042]
[1724026744952,2.05370133,58722.0,58721.0,0.0009042]
[1724026745491,2.05470133,58722.0,58721.0,0.0009042]
[1724026745630,2.05270133,58722.0,58721.0,0.0009042]
[1724026746056,1.88114679,58722.0,58721.0,0.0009042]
[1724026746424,1.64273579,58722.0,58721.0,0.0009042]
[1724026746634,1.62619254,58722.0,58721.0,0.0009042]
[1724026747046,1.64273548,58722.0,58721.0,0.0009042]
[1724026747250,1.60319254,58722.0,58721.0,0.0009042]
[1724026748295,1.63793167,58722.0,58721.0,0.0009042]
[1724026750167,1.65447355,58722.0,58721.0,0.0009042]
[1724026750493,1.67947355,58722.0,58721.0,0.0009042]
[1724026750699,1.67747355,58722.0,58721.0,0.0009042]
[1724026751847,1.66093167,58722.0,58721.0,0.0009042]
[1724026752222,1.66193167,58722.0,58721.0,0.0009042]
[1724026752428,1.66093167,58722.0,58721.0,0.0009042]
[1724026752672,1.67846975,58722.0,58721.0,0.0009042]
[1724026753278,1.67746975,58722.0,58721.0,0.0009042]
[1724026753478,1.84643062,58722.0,58721.0,0.0009042]
[1724026754352,0.002,58722.0,58721.0,0.0009042]
[1724026754775,0.002,58722.0,58721.0,0.3585262]
[1724026754990,0.002,58722.0,58721.0,0.5969412]
[1724026755410,0.002,58722.0,58721.0,1.0282562]
[1724026755633,0.002,58722.0,58721.0,0.7898412]
[1724026756261,0.119187,58731.0,58727.0,0.119195]
[1724026756465,0.40991754,58734.0,58726.0,0.119197]
[1724026756669,0.238376,58731.0,58726.0,0.119197]
[1724026756900,0.40991754,58734.0,58726.0,0.119197]
[1724026756901,0.238367,58733.0,58726.0,0.119197]
[1724026757109,0.238367,58733.0,58724.0,0.238401]
[1724026757319,0.238367,58733.0,58721.0,0.1938042]
[1724026757320,0.001,58722.0,58721.0,0.3260112]
[1724026757548,0.001,58722.0,58721.0,0.5644262]
[1724026757756,0.119186,58732.0,58727.0,0.119194]
[1724026758173,0.119186,58732.0,58728.0,0.119192]
[1724026758376,0.119185,58732.0,58727.0,0.119193]
[1724026758580,0.17155454,58734.0,58727.0,0.119193]
[1724026758581,0.119188,58731.0,58727.0,0.119193]
[1724026758789,0.119189,58730.0,58726.0,0.004]
[1724026758989,0.17155454,58734.0,58726.0,0.004]
[1724026759141,0.119184,58733.0,58725.0,0.238397]
[1724026759403,0.119186,58732.0,58726.0,0.119196]
[1724026759552,0.119187,58731.0,58726.0,0.119196]
[1724026760281,0.119185,58733.0,58726.0,0.238393]
[1724026760504,0.44288,58735.0,58726.0,0.238393]
[1724026760505,0.000822,58735.0,58734.0,0.357543]
[1724026760694,0.000822,58735.0,58734.0,1.190605]
[1724026761215,0.000822,58735.0,58734.0,0.952243]
[1724026762175,0.000822,58735.0,58734.0,1.60052154]
[1724026762376,0.000822,58735.0,58734.0,1.46215954]
[1724026762576,0.000822,58735.0,58734.0,2.552243]
[1724026763181,0.000822,58735.0,58734.0,0.813881]
[1724026763382,0.000822,58735.0,58734.0,1.053243]
[1724026763826,0.000822,58735.0,58734.0,1.291605]
[1724026764028,0.000822,58735.0,58734.0,1.052243]
[1724026764230,0.001822,58735.0,58734.0,1.064243]
[1724026764832,0.001822,58735.0,58734.0,1.302605]
[1724026765420,0.001822,58735.0,58734.0,0.012]
[1724026765421,0.121001,58735.0,58734.0,0.012]
[1724026765620,0.1534711,58735.0,58734.0,0.012]
[1724026765826,0.359359,58735.0,58734.0,0.012]
[1724026766026,0.121001,58735.0,58734.0,0.012]
[1724026766229,0.359359,58735.0,58734.0,0.012]
[1724026766649,0.121001,58735.0,58734.0,0.012]
[1724026766854,0.359359,58735.0,58734.0,0.012]
[1724026767961,0.001822,58735.0,58734.0,0.012]
[1724026768169,0.359359,58735.0,58734.0,0.012]
[1724026768707,0.84941274,58735.0,58734.0,0.012]
[1724026769527,0.119192,58729.0,58725.0,0.119199]
[1724026769934,0.119199,58725.0,58724.0,0.3774]
[1724026770138,0.1192,58725.0,58721.0,0.0009042]
[1724026770340,0.1192,58725.0,58721.0,0.1009042]
[1724026770553,0.357616,58722.0,58721.0,0.0009042]
[1724026770804,0.596027,58722.0,58721.0,0.0009042]
[1724026771007,0.119205,58722.0,58721.0,0.0009042]
[1724026771320,0.596027,58722.0,58721.0,0.0009042]
[1724026771914,0.357616,58722.0,58721.0,0.0009042]
[1724026772150,0.119203,58724.0,58721.0,0.0009042]
[1724026772366,0.119205,58722.0,58721.0,0.0009042]
[1724026772775,0.357616,58722.0,58721.0,0.0009042]
[1724026772977,0.119205,58722.0,58721.0,0.0009042]
[1724026773189,0.238383,58729.0,58721.0,0.0049042]
[1724026773397,0.6784,58737.0,58724.0,0.3978]
[1724026773398,0.238387,58728.0,58724.0,0.3978]
[1724026773602,0.238398,58726.0,58721.0,0.0049042]
[1724026773809,0.119202,58724.0,58721.0,0.0009042]
[1724026774013,0.001,58722.0,58721.0,0.0079042]
[1724026774657,0.119202,58724.0,58721.0,0.0009042]
[1724026774864,0.119199,58725.0,58721.0,0.0009042]
[1724026775297,0.23838,58730.0,58723.0,0.119202]
[1724026775512,0.119194,58728.0,58724.0,0.1192]
[1724026775744,0.120003,58735.0,58726.0,0.3768]
[1724026775951,0.120003,58735.0,58730.0,0.119188]
[1724026775952,0.000822,58735.0,58730.0,0.119188]
[1724026776175,0.17237654,58735.0,58726.0,0.3768]
[1724026776378,0.11919,58730.0,58727.0,0.1]
[1724026776578,0.17155454,58734.0,58727.0,0.1]
[1724026776579,0.119191,58729.0,58727.0,0.1]
[1724026776783,0.119193,58728.0,58727.0,0.1]
[1724026776986,0.0119193,58728.0,58721.0,0.0009042]
[1724026777193,0.119197,58727.0,58722.0,0.119204]
[1724026777394,0.119197,58726.0,58722.0,0.119204]
[1724026777599,0.99732954,58731.0,58727.0,0.002]
[1724026777811,0.238379,58730.0,58727.0,0.002]
[1724026778014,0.119193,58728.0,58727.0,0.002]
[1724026778820,0.119193,58728.0,58724.0,0.119201]
[1724026779028,0.119193,58728.0,58723.0,0.119203]
[1724026779238,0.119193,58728.0,58724.0,0.119201]
[1724026779424,0.238379,58730.0,58722.0,0.239409]
[1724026779864,0.119193,58728.0,58722.0,0.239409]
[1724026779989,0.119193,58728.0,58724.0,0.119201]
[1724026780394,0.119193,58728.0,58727.0,0.001]
[1724026781312,0.384522,58735.0,58727.0,0.001]
[1724026781313,0.000822,58735.0,58727.0,0.001]
[1724026781588,0.119181,58734.0,58729.0,0.238381]
[1724026781790,0.000822,58735.0,58729.0,0.238381]
[1724026781993,0.000822,58735.0,58733.0,0.119182]
[1724026782203,0.000822,58735.0,58731.0,0.119185]
[1724026782846,0.120001,58735.0,58731.0,0.119185]
[1724026783460,0.119184,58733.0,58728.0,0.3835]
[1724026783663,0.119184,58733.0,58729.0,0.11919]
[1724026783867,0.238363,58734.0,58728.0,0.3835]
[1724026784081,0.238379,58730.0,58720.0,0.238418]
[1724026784282,0.2037,58731.0,58721.0,0.1009042]
[1724026784283,0.119196,58727.0,58721.0,0.1009042]
[1724026784460,0.119192,58729.0,58724.0,0.1192]
[1724026784694,0.119193,58728.0,58724.0,0.1192]
[1724026784923,0.119191,58730.0,58725.0,0.119199]
[1724026785158,0.119193,58728.0,58723.0,0.357606]
[1724026785376,0.119193,58728.0,58724.0,0.119201]
[1724026785576,0.23838,58730.0,58724.0,0.119201]
[1724026785839,0.1892,58727.0,58721.0,0.1009042]
[1724026786042,0.1192,58725.0,58721.0,0.0009042]
[1724026786286,0.119198,58726.0,58725.0,0.002]
[1724026786705,0.119198,58726.0,58722.0,0.119205]
[1724026787612,0.1892,58727.0,58721.0,0.0019042]
[1724026787820,0.119205,58722.0,58721.0,0.0019042]
[1724026788028,0.357616,58722.0,58721.0,0.0019042]
[1724026788237,0.357616,58722.0,58721.0,0.0009042]
[1724026788640,0.119205,58722.0,58721.0,0.0009042]
[1724026788750,0.3706,58723.0,58721.0,0.0009042]
[1724026788966,0.119195,58728.0,58721.0,0.0009042]
[1724026789172,0.01651264,58726.0,58725.0,0.119199]
[1724026789388,0.4747,58737.0,58721.0,0.0069042]
[1724026789629,0.01651388,58734.0,58722.0,0.3821]
[1724026789836,0.23918,58735.0,58722.0,0.3821]
[1724026789837,0.01651388,58733.0,58722.0,0.3821]
[1724026790030,0.01651388,58732.0,58731.0,0.357561]
[1724026790256,0.01651388,58732.0,58731.0,0.743161]
[1724026790457,0.120001,58735.0,58731.0,0.3856]
[1724026790670,0.01651321,58734.0,58731.0,0.504787]
[1724026790876,0.120001,58735.0,58731.0,0.504787]
[1724026791083,0.01651394,58734.0,58731.0,0.504787]
[1724026791290,0.000822,58735.0,58732.0,0.119183]
[1724026791494,0.01651448,58734.0,58732.0,0.119183]
[1724026791888,0.01651448,58734.0,58728.0,0.238383]
[1724026791889,0.01651581,58733.0,58730.0,0.119188]
[1724026792157,0.122182,58734.0,58730.0,0.119188]
[1724026792374,0.01651627,58733.0,58730.0,0.119188]
[1724026792578,0.119182,58734.0,58730.0,0.119188]
[1724026792779,0.01651529,58733.0,58730.0,0.119188]
[1724026792981,0.119182,58734.0,58730.0,0.119188]
[1724026793281,0.01651422,58733.0,58730.0,0.120188]
[1724026793484,0.01651422,58732.0,58730.0,0.120188]
[1724026793684,0.000822,58735.0,58730.0,0.120188]
[1724026793829,0.01651043,58734.0,58730.0,0.120188]
[1724026794008,0.01651043,58733.0,58730.0,0.120188]
[1724026794214,0.119181,58734.0,58730.0,0.120188]
[1724026794215,0.01651043,58732.0,58730.0,0.120188]
[1724026794426,0.119181,58734.0,58730.0,0.119188]
[1724026794670,0.0165102,58733.0,58730.0,0.119188]
[1724026794869,0.0165102,58732.0,58730.0,0.121188]
[1724026795179,0.119181,58734.0,58730.0,0.121188]
[1724026795381,0.01651037,58733.0,58730.0,0.119188]
[1724026795584,0.01651037,58732.0,58730.0,0.119188]
[1724026795784,0.01651037,58731.0,58730.0,0.120188]
[1724026796101,0.01651037,58731.0,58730.0,0.119188]
[1724026796309,0.01651037,58731.0,58730.0,0.121188]
[1724026796713,0.01651037,58731.0,58730.0,0.002]
[1724026796915,0.01651037,58731.0,58730.0,0.121189]
[1724026797137,0.01651037,58731.0,58730.0,0.002]
[1724026797764,0.01651037,58731.0,58729.0,0.119191]
[1724026797971,0.119183,58733.0,58730.0,0.006]
[1724026798178,0.01651387,58732.0,58730.0,0.125188]
[1724026798396,0.01651387,58731.0,58730.0,0.125188]
[1724026798603,0.01651387,58733.0,58730.0,0.125188]
[1724026798800,0.01651387,58733.0,58727.0,0.238391]
[1724026798801,0.13569987,58732.0,58728.0,0.119193]
[1724026799006,0.01651387,58731.0,58729.0,0.12519]
[1724026799207,0.01651387,58730.0,58729.0,0.12519]
[1724026799618,0.01651387,58732.0,58729.0,0.11919]
[1724026799820,0.119184,58733.0,58729.0,0.11919]
[1724026799821,0.01651387,58731.0,58729.0,0.11919]
[1724026800018,0.000822,58735.0,58729.0,0.11919]
[1724026800019,0.01651387,58730.0,58729.0,0.11919]
[1724026800310,0.000822,58735.0,58730.0,0.119187]
[1724026800311,0.13569745,58734.0,58730.0,0.119187]
[1724026800461,0.01651557,58733.0,58730.0,0.119187]
[1724026800786,0.01651557,58732.0,58731.0,0.119186]
[1724026800993,0.000822,58735.0,58732.0,0.119184]
[1724026800994,0.01651564,58734.0,58732.0,0.119184]
[1724026801188,0.000822,58735.0,58730.0,0.003]
[1724026801189,0.01651564,58733.0,58730.0,0.003]
[1724026801499,0.01651564,58732.0,58730.0,0.122188]
[1724026801702,0.01651564,58731.0,58730.0,0.003]
[1724026801915,0.119187,58732.0,58727.0,0.1]
[1724026802181,0.01651564,58731.0,58727.0,0.1]
[1724026802389,0.119182,58734.0,58730.0,0.119189]
[1724026802599,0.119182,58734.0,58728.0,0.238386]
[1724026802600,0.01651968,58733.0,58729.0,0.238381]
[1724026802811,0.47675,58731.0,58727.0,0.1]
[1724026803020,0.238386,58729.0,58723.0,0.219203]
[1724026803237,0.238411,58722.0,58721.0,0.0009042]
[1724026803443,0.50872368,58722.0,58721.0,0.0009042]
[1724026803652,0.01651868,58722.0,58721.0,0.1201112]
[1724026803863,0.1192,58725.0,58721.0,0.0009042]
[1724026804074,0.13572707,58724.0,58721.0,0.0009042]
[1724026804283,0.119198,58726.0,58722.0,0.119205]
[1724026804487,0.13572724,58725.0,58722.0,0.119205]
[1724026804689,0.119199,58725.0,58722.0,0.119205]
[1724026805157,0.119197,58726.0,58722.0,0.119205]
[1724026805368,0.01652246,58725.0,58722.0,0.119205]
[1724026805546,0.1192,58725.0,58721.0,0.0009042]
[1724026805783,0.43067,58733.0,58722.0,0.366]
[1724026805994,0.119192,58729.0,58724.0,0.1192]
[1724026806203,0.01652256,58728.0,58724.0,0.1192]
[1724026806404,0.01652256,58727.0,58725.0,0.119199]
[1724026806622,0.119192,58729.0,58725.0,0.119199]
[1724026806824,0.13571562,58728.0,58724.0,0.119201]
[1724026807028,0.01652262,58727.0,58725.0,0.119199]
[1724026807228,0.119193,58728.0,58725.0,0.119199]
[1724026807434,0.01652045,58727.0,58725.0,0.119199]
[1724026807646,0.2037,58729.0,58721.0,0.0009042]
[1724026807846,0.01651959,58728.0,58721.0,0.0029042]
[1724026807976,0.01651959,58727.0,58726.0,0.357592]
[1724026808778,0.119181,58734.0,58730.0,0.119188]
[1724026808980,0.01651849,58733.0,58730.0,0.119188]
[1724026809106,0.01651849,58733.0,58729.0,0.11919]
[1724026809107,0.01651849,58732.0,58729.0,0.11919]
[1724026809316,0.01651849,58731.0,58729.0,0.11919]
[1724026809491,0.01651849,58730.0,58729.0,0.11919]
[1724026810151,0.119183,58733.0,58729.0,0.11919]
[1724026810426,0.01651123,58732.0,58729.0,0.238381]
[1724026810658,0.01651123,58731.0,58730.0,0.357568]
[1724026810891,0.01651123,58731.0,58730.0,0.595947]
[1724026811419,0.01651123,58731.0,58730.0,0.357568]
[1724026812063,0.01651123,58731.0,58730.0,0.742968]
[1724026812279,0.01651123,58731.0,58730.0,0.981347]
[1724026812490,0.000822,58735.0,58734.0,0.119181]
[1724026812914,0.000822,58735.0,58734.0,0.595905]
[1724026814626,0.000822,58735.0,58734.0,0.596905]
[1724026815045,0.000822,58735.0,58734.0,0.001]
[1724026815268,0.000822,58735.0,58734.0,0.120181]
[1724026815489,0.000822,58735.0,58734.0,0.001]
[1724026818128,0.000822,58735.0,58734.0,0.1958]
[1724026818785,0.000822,58735.0,58734.0,0.001]
[1724026819678,0.204522,58735.0,58734.0,0.001]
[1724026819974,0.39258422,58735.0,58734.0,0.001]
[1724026820140,0.77458422,58735.0,58734.0,0.001]
[1724026820798,1.01674167,58735.0,58734.0,0.001]
[1724026821013,0.002,58731.0,58730.0,0.0009042]
[1724026821247,0.84291426,58731.0,58730.0,0.0009042]
[1724026821485,0.86888486,58731.0,58730.0,0.0009042]
[1724026821698,0.81100697,58731.0,58730.0,0.0009042]
[1724026821897,0.81100697,58731.0,58721.0,0.0009042]
[1724026821898,0.83500478,58731.0,58721.0,0.0009042]
[1724026822107,0.7561,58722.0,58721.0,0.0009042]
[1724026822308,0.94415202,58722.0,58721.0,0.0009042]
[1724026822545,1.05115082,58722.0,58721.0,0.0009042]
[1724026822984,1.05315082,58722.0,58721.0,0.0009042]
[1724026823194,1.05315082,58722.0,58708.0,0.0009053]
[1724026823195,0.001,58711.0,58708.0,0.0009053]
[1724026823404,0.81713628,58722.0,58708.0,0.0009053]
[1724026823405,0.3874,58709.0,58708.0,0.0009053]
[1724026823616,0.96875202,58709.0,58708.0,0.0009053]
[1724026823872,1.04720735,58709.0,58708.0,0.0009053]
[1724026824077,1.04420735,58709.0,58708.0,0.0009053]
[1724026824276,1.14191505,58709.0,58708.0,0.0009053]
[1724026824488,1.15481077,58709.0,58708.0,0.0019053]
[1724026824754,1.15481077,58709.0,58701.0,0.0009053]
[1724026824755,0.5787,58702.0,58701.0,0.0009053]
[1724026825027,0.5787,58702.0,58696.0,0.009031]
[1724026825028,0.3953,58697.0,58696.0,0.009031]
[1724026825286,0.3953,58697.0,58688.0,0.009031]
[1724026825287,0.62208202,58697.0,58688.0,0.009031]
[1724026825574,0.5799,58689.0,58688.0,0.009031]
[1724026825821,0.76595202,58689.0,58688.0,0.009031]
[1724026826363,0.74945454,58689.0,58688.0,0.009031]
[1724026826642,0.82639999,58689.0,58688.0,0.009031]
[1724026826886,0.86588768,58689.0,58688.0,0.010031]
[1724026827132,0.87988768,58689.0,58688.0,0.010031]
[1724026827370,0.84939999,58689.0,58688.0,0.009031]
[1724026827662,0.3887,58686.0,58685.0,0.009009]
[1724026827878,0.5809,58684.0,58675.0,0.009042]
[1724026828148,0.77545454,58684.0,58675.0,0.009042]
[1724026828384,0.77745454,58684.0,58675.0,0.009042]
[1724026828652,0.77745454,58684.0,58656.0,0.001]
[1724026828653,0.001,58672.0,58656.0,0.001]
[1724026828915,0.94005454,58672.0,58646.0,0.87847509]
[1724026829195,1.01449249,58672.0,58656.0,0.001]
[1724026829496,1.20279249,58672.0,58656.0,0.001]
[1724026829752,1.12967174,58672.0,58646.0,0.3667]
[1724026830396,0.3611,58671.0,58656.0,0.001]
[1724026830623,0.3611,58671.0,58642.0,0.1846]
[1724026830624,0.2037,58663.0,58642.0,0.1846]
[1724026830853,0.94412454,58663.0,58643.0,0.51177509]
[1724026831097,0.92365454,58663.0,58655.0,0.001]
[1724026831289,0.92365454,58663.0,58650.0,0.002]
[1724026831450,0.92365454,58663.0,58650.0,0.001]
[1724026832237,0.94665454,58663.0,58650.0,0.001]
[1724026832502,0.19455454,58662.0,58650.0,0.001]
[1724026832778,0.09506545,58661.0,58650.0,0.001]
[1724026832985,0.364,58659.0,58650.0,0.001]
[1724026833217,0.53555454,58659.0,58650.0,0.001]
[1724026833479,0.002,58655.0,58650.0,0.001]
[1724026833708,0.2037,58651.0,58650.0,0.001]
[1724026833940,0.37525454,58651.0,58650.0,0.001]
[1724026835082,0.93425454,58651.0,58650.0,0.001]
[1724026835331,0.95925454,58651.0,58650.0,0.001]
[1724026835533,0.95825454,58651.0,58650.0,0.001]
[1724026835748,0.014,58651.0,58650.0,0.001]
[1724026835945,0.2177,58651.0,58650.0,0.001]
[1724026836156,0.014,58651.0,58650.0,0.001]
[1724026836366,0.2037,58658.0,58650.0,0.002]
[1724026836595,0.014,58651.0,58650.0,0.002]
[1724026836808,0.014,58651.0,58650.0,0.001]
[1724026837256,0.2037,58652.0,58650.0,0.0019042]
[1724026837475,0.05913,58651.0,58650.0,0.0019042]
[1724026838095,0.2037,58652.0,58650.0,0.0019042]
[1724026838541,0.17155454,58651.0,58650.0,0.0019042]
[1724026838751,0.36715454,58651.0,58650.0,0.0019042]
[1724026839155,0.37715454,58651.0,58650.0,0.0019042]
[1724026839574,0.36715454,58651.0,58650.0,0.0019042]
[1724026839769,0.39097268,58651.0,58650.0,0.0019042]
[1724026839972,0.39997268,58651.0,58650.0,0.0019042]
[1724026840436,0.39097268,58651.0,58650.0,0.0019042]
[1724026840647,0.59467268,58651.0,58650.0,0.0019042]
[1724026841472,0.97187268,58651.0,58650.0,0.0019042]
[1724026842075,0.94805454,58651.0,58650.0,0.0019042]
[1724026842281,0.37525454,58651.0,58650.0,0.0019042]
[1724026842661,0.72175454,58651.0,58650.0,0.0019042]
[1724026843125,0.71275454,58651.0,58650.0,0.0019042]
[1724026843542,0.38525454,58651.0,58650.0,0.0019042]
[1724026843736,0.01,58651.0,58650.0,0.0019042]
[1724026844120,0.2037,58657.0,58650.0,0.0019042]
[1724026844325,0.01,58651.0,58650.0,0.0019042]
[1724026844524,0.18155454,58651.0,58650.0,0.0019042]
[1724026845064,0.18155454,58651.0,58650.0,0.0029042]
[1724026845468,0.01,58651.0,58650.0,0.0019042]
[1724026845670,0.2037,58657.0,58650.0,0.0019042]
[1724026845874,0.37525454,58657.0,58650.0,0.3293042]
[1724026846087,0.01,58651.0,58650.0,0.3293042]
[1724026846492,0.37525454,58657.0,58650.0,0.3293042]
[1724026846693,0.37525454,58657.0,58651.0,1.5]
[1724026847010,0.38625454,58657.0,58651.0,1.5]
[1724026847285,0.011,58657.0,58656.0,0.001]
[1724026847493,0.4747,58667.0,58666.0,0.001]
[1724026847693,0.17155454,58667.0,58662.0,0.1892]
[1724026847919,0.2037,58669.0,58662.0,0.1892]
[1724026848334,0.3375,58675.0,58662.0,0.1892]
[1724026848542,0.2037,58676.0,58662.0,0.1892]
[1724026848765,0.27154,58676.0,58675.0,0.001]
[1724026848965,0.27154,58676.0,58671.0,0.001]
[1724026848966,0.2037,58676.0,58671.0,0.001]
[1724026849071,0.2037,58676.0,58663.0,1.8274]
[1724026849072,0.17155454,58675.0,58664.0,0.001]
[1724026849281,0.17155454,58675.0,58654.0,0.1]
[1724026849282,0.5412,58670.0,58661.0,0.001]
[1724026849503,0.000823,58663.0,58661.0,0.001]
[1724026850421,0.000823,58663.0,58662.0,0.001]
[1724026850626,0.000823,58663.0,58661.0,0.001]
[1724026851039,0.17237754,58663.0,58657.0,0.001]
[1724026851241,0.17237754,58663.0,58653.0,0.3274]
[1724026851413,0.17237754,58663.0,58654.0,0.1]
[1724026851620,0.17237754,58663.0,58655.0,1.5]
[1724026851781,0.000823,58663.0,58662.0,0.001]
[1724026852564,0.000823,58663.0,58658.0,0.001]
[1724026852797,0.000823,58663.0,58656.0,0.1]
[1724026852969,0.000823,58663.0,58657.0,0.001]
[1724026852970,0.19200684,58662.0,58657.0,0.001]
[1724026853373,0.19200684,58662.0,58654.0,0.1]
[1724026853593,0.17155454,58662.0,58661.0,0.001]
[1724026853716,0.17155454,58662.0,58654.0,0.1]
[1724026853717,0.18803113,58662.0,58654.0,0.1]
[1724026853912,0.01647659,58661.0,58654.0,0.1]
[1724026854116,0.17155454,58661.0,58654.0,0.1]
[1724026854330,0.01647221,58660.0,58657.0,0.001]
[1724026854528,0.17155454,58661.0,58657.0,0.001]
[1724026854793,0.01647186,58660.0,58654.0,0.1]
[1724026854967,0.17155454,58661.0,58654.0,0.1]
[1724026855173,0.01647186,58660.0,58657.0,0.001]
[1724026855513,0.01647183,58659.0,58657.0,0.001]
[1724026855960,0.01647183,58659.0,58636.0,0.002]
[1724026855961,0.01647185,58658.0,58651.0,0.1911053]
[1724026856196,0.2037,58652.0,58651.0,0.0009053]
[1724026856398,0.39172639,58652.0,58651.0,0.0009053]
[1724026857242,0.37525454,58652.0,58651.0,0.0009053]
[1724026857468,0.39172573,58652.0,58651.0,0.0009053]
[1724026858117,0.39272573,58652.0,58651.0,0.0009053]
[1724026859145,0.42070756,58652.0,58651.0,0.0009053]
[1724026860875,0.42270756,58652.0,58651.0,0.0009053]
[1724026861602,0.42070756,58652.0,58651.0,0.0009053]
[1724026863076,0.42270756,58652.0,58651.0,0.0009053]
[1724026863605,0.39172573,58652.0,58651.0,0.0009053]
[1724026863811,0.58282573,58652.0,58651.0,0.0009053]
[1724026864058,0.58282573,58652.0,58649.0,0.009042]
[1724026864059,0.004,58650.0,58649.0,0.009042]
[1724026864263,0.004,58650.0,58630.0,0.001]
[1724026864264,0.001,58648.0,58630.0,0.001]
[1724026864468,0.2037,58644.0,58629.0,0.3366742]
[1724026864669,0.18802472,58643.0,58629.0,0.3366742]
[1724026864882,0.01647018,58642.0,58629.0,0.3366742]
[1724026865085,0.18802472,58641.0,58633.0,0.001]
[1724026865300,0.01647018,58640.0,58633.0,0.001]
[1724026865510,0.02037,58643.0,58633.0,0.001]
[1724026865511,0.18802472,58639.0,58633.0,0.001]
[1724026865725,0.17155454,58639.0,58633.0,0.001]
[1724026865898,0.17155454,58639.0,58636.0,0.001]
[1724026866104,0.19074699,58639.0,58629.0,0.3366742]
[1724026866777,0.19074699,58639.0,58630.0,0.001]
[1724026866957,0.19074699,58639.0,58629.0,0.3366742]
[1724026867179,0.5388,58638.0,58630.0,0.001]
[1724026867435,0.2037,58632.0,58630.0,0.001]
[1724026867635,0.2037,58632.0,58629.0,0.0117742]
[1724026868504,0.17155454,58637.0,58630.0,0.001]
[1724026868715,0.17155454,58637.0,58629.0,0.0117742]
[1724026868919,0.17155454,58637.0,58630.0,0.3156]
[1724026869123,0.17155454,58637.0,58633.0,0.001]
[1724026869323,0.17155454,58637.0,58630.0,0.3156]
[1724026869324,0.17155454,58637.0,58636.0,0.001]
[1724026869557,0.17155454,58637.0,58630.0,0.3156]
[1724026869808,0.2037,58644.0,58638.0,0.001]
[1724026870036,0.2037,58644.0,58636.0,0.001]
[1724026870239,0.2037,58637.0,58633.0,0.001]
[1724026870417,0.37525454,58637.0,58630.0,0.001]
[1724026870685,0.37525454,58637.0,58633.0,0.001]
[1724026870907,0.37525454,58637.0,58629.0,0.0117742]
[1724026871109,0.17155454,58637.0,58636.0,0.001]
[1724026871335,0.17155454,58637.0,58629.0,0.0117742]
[1724026871541,0.17155454,58637.0,58633.0,0.001]
[1724026871757,0.20907999,58636.0,58633.0,0.001]
[1724026871986,0.20907999,58636.0,58623.0,0.10204648]
[1724026871987,1.6687,58620.0,58598.0,0.17220344]
[1724026872204,1.6687,58620.0,58580.0,0.67250819]
[1724026872205,0.201,58566.0,58551.0,0.03423]
[1724026872420,0.5115,58582.0,58525.0,0.00023193]
[1724026872421,0.001,58526.0,58525.0,0.00023193]
[1724026872650,0.203,58526.0,58525.0,0.00023193]
[1724026872866,0.203,58526.0,58510.0,0.09679294]
[1724026872867,0.002,58511.0,58510.0,0.0117742]
[1724026873078,1.90993248,58511.0,58510.0,0.0117742]
[1724026873309,2.89416118,58511.0,58466.0,0.2878]
[1724026873518,0.01150372,58479.0,58471.0,0.2047]
[1724026873725,0.06640116,58488.0,58479.0,0.00043448]
[1724026873948,0.53117581,58487.0,58484.0,0.001]
[1724026874197,0.51177509,58509.0,58493.0,0.001]
[1724026874198,0.51177509,58494.0,58493.0,0.001]
[1724026874398,0.04945574,58501.0,58488.0,0.20070012]